bitfinex-derivatives/quotes_BTCF0:USTF0_20240829
["timestamp","ask_amount","ask_price","bid_price","bid_amount"]
[1724892450409,0.001,59181.0,59179.0,0.084468]
[1724892450612,0.001,59181.0,59180.0,0.084466]
[1724892450912,0.17132541,59185.0,59180.0,0.084466]
[1724892451097,0.001,59182.0,59180.0,0.084466]
[1724892451914,0.11544737,59185.0,59180.0,0.085466]
[1724892452109,0.004,59182.0,59180.0,0.085466]
[1724892452611,0.004,59182.0,59181.0,0.084465]
[1724892452817,0.004,59182.0,59180.0,0.002]
[1724892453912,0.004,59182.0,59180.0,0.001]
[1724892454115,0.004,59182.0,59181.0,0.084465]
[1724892455108,0.004,59182.0,59181.0,0.157465]
[1724892455304,0.004,59182.0,59181.0,0.158465]
[1724892455503,0.004,59182.0,59181.0,0.075]
[1724892456110,0.004,59182.0,59181.0,0.159465]
[1724892458506,0.21210211,59182.0,59180.0,0.16520106]
[1724892458712,0.20810211,59181.0,59180.0,0.16520106]
[1724892459004,0.20810211,59181.0,59180.0,0.24966706]
[1724892459510,0.14744932,59181.0,59180.0,0.09233068]
[1724892459709,0.14744932,59181.0,59180.0,0.09333068]
[1724892460314,0.15244932,59181.0,59180.0,0.09433068]
[1724892460810,0.15244932,59181.0,59180.0,0.09333068]
[1724892461118,0.15344932,59181.0,59180.0,0.09433068]
[1724892461921,0.15344932,59181.0,59180.0,0.086466]
[1724892462812,0.15544932,59181.0,59180.0,0.086466]
[1724892463015,0.24226034,59181.0,59180.0,0.086466]
[1724892463216,0.60306034,59181.0,59180.0,0.086466]
[1724892463629,0.60306034,59181.0,59172.0,0.04880104]
[1724892463817,0.23426034,59180.0,59179.0,0.084468]
[1724892464816,0.14744932,59180.0,59179.0,0.084468]
[1724892465017,0.15444932,59180.0,59179.0,0.085468]
[1724892466519,0.009,59180.0,59179.0,0.086468]
[1724892467423,0.007,59180.0,59179.0,0.088468]
[1724892468026,0.084466,59180.0,59179.0,0.089468]
[1724892468721,0.087466,59180.0,59179.0,0.087468]
[1724892469114,0.003,59180.0,59179.0,0.084468]
[1724892469324,0.005,59180.0,59179.0,0.084468]
[1724892469732,0.006,59180.0,59179.0,0.084468]
[1724892471327,0.002,59180.0,59179.0,0.084468]
[1724892471625,0.003,59180.0,59179.0,0.084468]
[1724892472430,0.002,59180.0,59179.0,0.084468]
[1724892472723,0.003,59180.0,59179.0,0.084468]
[1724892473537,0.07237349,59180.0,59179.0,0.084468]
[1724892475337,0.15044523,59180.0,59179.0,0.084468]
[1724892476940,0.15044523,59180.0,59179.0,0.374468]
[1724892477133,0.15044523,59180.0,59179.0,0.458936]
[1724892477439,0.15044523,59180.0,59179.0,0.374468]
[1724892477826,0.15044523,59180.0,59179.0,0.528468]
[1724892478039,0.14944523,59180.0,59179.0,0.528468]
[1724892478333,0.15218312,59180.0,59179.0,0.537468]
[1724892478639,0.15118312,59180.0,59179.0,0.238468]
[1724892478833,0.15018312,59180.0,59179.0,0.245468]
[1724892479042,0.15018312,59180.0,59179.0,0.252468]
[1724892479731,0.15018312,59180.0,59179.0,0.250468]
[1724892480432,0.15018312,59180.0,59179.0,0.245468]
[1724892480638,0.15018312,59180.0,59179.0,0.095468]
[1724892481037,0.15018312,59180.0,59179.0,0.088468]
[1724892481038,0.14918312,59180.0,59179.0,0.088468]
[1724892481242,0.14918312,59180.0,59179.0,0.094468]
[1724892481740,0.00173789,59180.0,59179.0,0.094468]
[1724892482133,0.00173789,59180.0,59179.0,0.089468]
[1724892482738,0.00173789,59180.0,59179.0,0.085468]
[1724892482939,0.00173789,59180.0,59179.0,0.089468]
[1724892484341,0.00173789,59180.0,59179.0,0.094468]
[1724892484731,0.00173789,59180.0,59179.0,0.095468]
[1724892484934,0.00173789,59180.0,59179.0,0.089468]
[1724892485243,0.00273789,59180.0,59179.0,0.096468]
[1724892485541,0.00173789,59180.0,59179.0,0.084468]
[1724892485737,0.00173789,59180.0,59179.0,0.094468]
[1724892486335,0.00173789,59180.0,59179.0,0.087468]
[1724892487841,0.00173789,59180.0,59179.0,0.085468]
[1724892488037,0.00173789,59180.0,59179.0,0.087468]
[1724892488241,0.44700389,59180.0,59179.0,0.003]
[1724892488645,0.59444912,59180.0,59179.0,0.003]
[1724892489041,0.59444912,59180.0,59174.0,0.00025358]
[1724892489042,0.50998312,59180.0,59174.0,0.00025358]
[1724892489256,0.6508,59175.0,59174.0,0.00025358]
[1724892489437,1.30517726,59175.0,59156.0,0.0768]
[1724892489636,0.3608,59161.0,59151.0,0.084507]
[1724892489954,0.3608,59156.0,59153.0,0.084505]
[1724892490152,0.14741726,59155.0,59154.0,0.084504]
[1724892491446,0.14741726,59155.0,59154.0,0.374504]
[1724892491647,0.15241726,59155.0,59154.0,0.374504]
[1724892491848,0.15541726,59155.0,59154.0,0.374504]
[1724892492150,0.15041726,59155.0,59154.0,0.377504]
[1724892492552,0.15041726,59155.0,59154.0,0.381504]
[1724892492553,0.14741726,59155.0,59154.0,0.381504]
[1724892492853,0.14590157,59155.0,59154.0,1.576168]
[1724892493039,0.00025358,59160.0,59159.0,0.084496]
[1724892493242,0.00025358,59160.0,59159.0,0.735296]
[1724892493442,0.00025358,59160.0,59159.0,1.926912]
[1724892493951,0.07833753,59160.0,59159.0,1.926912]
[1724892494753,0.00025358,59160.0,59159.0,1.926912]
[1724892494949,0.06959876,59160.0,59159.0,1.926912]
[1724892495145,0.07259876,59160.0,59159.0,1.926912]
[1724892495843,0.06959876,59160.0,59159.0,1.926912]
[1724892496044,0.07059876,59160.0,59159.0,1.926912]
[1724892496753,0.00125358,59160.0,59159.0,1.926912]
[1724892498439,0.00025358,59160.0,59159.0,1.938912]
[1724892498847,0.00025358,59160.0,59159.0,1.946912]
[1724892498848,0.00125358,59160.0,59159.0,1.946912]
[1724892499144,0.00125358,59160.0,59159.0,1.934912]
[1724892499345,0.00125358,59160.0,59159.0,1.940912]
[1724892500252,0.23301371,59175.0,59173.0,0.084476]
[1724892500747,0.23301371,59175.0,59169.0,0.3608]
[1724892500748,0.23301371,59175.0,59174.0,0.084475]
[1724892500942,0.26279527,59175.0,59174.0,0.084475]
[1724892501547,0.26579527,59175.0,59174.0,0.084475]
[1724892501748,0.27379527,59175.0,59174.0,0.084475]
[1724892502153,0.084475,59174.0,59173.0,0.002]
[1724892502355,0.18932127,59175.0,59171.0,0.084479]
[1724892502356,0.084477,59173.0,59171.0,0.084479]
[1724892503056,0.084478,59172.0,59171.0,0.084479]
[1724892503355,0.084478,59172.0,59169.0,0.36105358]
[1724892503356,0.47932127,59175.0,59169.0,0.00025358]
[1724892503554,0.47932127,59175.0,59163.0,0.32064]
[1724892503555,0.374481,59170.0,59163.0,0.32064]
[1724892503763,0.168997,59158.0,59157.0,0.00192]
[1724892504051,0.084511,59149.0,59147.0,0.3608]
[1724892504257,0.3608,59153.0,59147.0,0.3608]
[1724892504457,0.084519,59144.0,59142.0,0.08452]
[1724892504661,0.06935052,59143.0,59142.0,0.08452]
[1724892504860,0.06935052,59148.0,59142.0,0.08452]
[1724892505153,0.0696041,59149.0,59147.0,0.084514]
[1724892505354,0.00125358,59149.0,59147.0,0.098514]
[1724892506358,0.03139243,59149.0,59147.0,0.098514]
[1724892506748,0.0747,59148.0,59147.0,0.098514]
[1724892506949,0.0747,59148.0,59147.0,0.084514]
[1724892507150,0.0757,59148.0,59147.0,0.096514]
[1724892507655,0.0747,59148.0,59147.0,0.110514]
[1724892508259,0.0757,59148.0,59147.0,0.110514]
[1724892516966,0.001,59148.0,59147.0,0.110514]
[1724892519262,0.001,59148.0,59147.0,1.386742]
[1724892520467,0.001,59148.0,59147.0,0.786742]
[1724892520664,0.001,59148.0,59147.0,1.386742]
[1724892523374,5.8e-07,59149.0,59148.0,0.760736]
[1724892523870,5.8e-07,59149.0,59148.0,1.360736]
[1724892524970,5.8e-07,59149.0,59148.0,2.082336]
[1724892525166,5.8e-07,59149.0,59148.0,1.496336]
[1724892525367,0.00100058,59149.0,59148.0,2.096336]
[1724892525569,0.00100058,59149.0,59148.0,0.904624]
[1724892526070,0.00100058,59149.0,59148.0,0.916624]
[1724892526368,0.00100058,59149.0,59148.0,0.832112]
[1724892527258,0.00100058,59149.0,59148.0,0.818112]
[1724892527468,5.8e-07,59149.0,59148.0,0.832112]
[1724892527967,5.8e-07,59149.0,59148.0,0.818112]
[1724892528268,5.8e-07,59149.0,59148.0,0.832112]
[1724892529565,0.06935472,59149.0,59148.0,0.832112]
[1724892530274,0.06935472,59149.0,59148.0,0.471312]
[1724892531774,0.15386572,59149.0,59148.0,0.471312]
[1724892533666,0.08451158,59149.0,59148.0,0.471312]
[1724892542368,0.08451158,59149.0,59148.0,0.110512]
[1724892543175,5.8e-07,59149.0,59148.0,0.110512]
[1724892543372,5.8e-07,59149.0,59148.0,0.195024]
[1724892546880,5.8e-07,59149.0,59148.0,0.110512]
[1724892547773,0.15388094,59149.0,59148.0,0.110512]
[1724892548780,0.08451158,59149.0,59148.0,0.110512]
[1724892549382,0.08451158,59149.0,59148.0,0.026]
[1724892553181,0.08451158,59149.0,59148.0,0.110512]
[1724892553182,5.8e-07,59149.0,59148.0,0.110512]
[1724892558993,0.06937024,59149.0,59148.0,0.110512]
[1724892562292,5.8e-07,59149.0,59148.0,0.110512]
[1724892567987,5.8e-07,59149.0,59148.0,0.026]
[1724892567988,0.20451158,59149.0,59148.0,0.026]
[1724892568198,0.08452,59143.0,59138.0,0.002]
[1724892568382,0.12,59141.0,59140.0,0.084524]
[1724892568587,0.204514,59147.0,59140.0,0.4808]
[1724892569294,0.204514,59147.0,59146.0,0.084515]
[1724892569696,0.204514,59147.0,59140.0,0.4808]
[1724892569697,0.12088058,59149.0,59148.0,0.084512]
[1724892569889,0.12000058,59149.0,59148.0,0.084512]
[1724892570394,0.20451158,59149.0,59148.0,0.084512]
[1724892571193,0.20551158,59149.0,59148.0,0.084512]
[1724892572004,0.20751158,59149.0,59140.0,0.3608]
[1724892572194,0.12,59141.0,59137.0,0.07925358]
[1724892572395,0.12,59138.0,59137.0,0.16378158]
[1724892573097,0.12,59138.0,59137.0,0.08478158]
[1724892573295,0.12,59138.0,59137.0,0.09178158]
[1724892573996,0.12,59138.0,59137.0,0.08478158]
[1724892574199,0.121,59138.0,59137.0,0.09178158]
[1724892574895,0.122,59138.0,59137.0,0.09378158]
[1724892577091,0.151789,59138.0,59137.0,0.09378158]
[1724892577290,0.236315,59138.0,59137.0,0.09378158]
[1724892579699,0.12,59138.0,59137.0,0.09378158]
[1724892580796,0.204526,59138.0,59137.0,0.09378158]
[1724892581192,0.204526,59138.0,59137.0,0.00925358]
[1724892582201,0.289052,59138.0,59137.0,0.00925358]
[1724892584504,0.796332,59138.0,59137.0,0.00925358]
[1724892584703,1.40901927,59138.0,59137.0,0.00925358]
[1724892584907,0.084554,59119.0,59112.0,0.3608]
[1724892585097,0.084554,59119.0,59111.0,0.0841]
[1724892585098,0.12,59119.0,59111.0,0.0841]
[1724892585294,0.3608,59122.0,59112.0,0.084564]
[1724892585295,0.12,59113.0,59112.0,0.084564]
[1724892585499,0.12,59113.0,59108.0,0.11456161]
[1724892585702,0.3608,59114.0,59108.0,0.11456161]
[1724892585703,0.12,59109.0,59108.0,0.084569]
[1724892586108,0.374562,59113.0,59108.0,0.084569]
[1724892586712,0.374562,59113.0,59109.0,0.084567]
[1724892587007,0.36105358,59114.0,59111.0,0.009]
[1724892587213,0.39218839,59114.0,59111.0,0.009]
[1724892587402,0.39218839,59114.0,59103.0,0.00025358]
[1724892587602,0.39218839,59114.0,59108.0,0.009]
[1724892587603,0.001,59113.0,59108.0,0.009]
[1724892587802,0.001,59113.0,59112.0,0.3608]
[1724892588913,0.001,59113.0,59112.0,0.526564]
[1724892589116,0.002,59113.0,59112.0,0.533564]
[1724892589812,0.001,59113.0,59112.0,0.533564]
[1724892590013,0.002,59113.0,59112.0,0.534564]
[1724892592306,0.002,59113.0,59112.0,0.173764]
[1724892593012,0.002,59113.0,59112.0,0.534564]
[1724892597115,0.002,59113.0,59112.0,0.619128]
[1724892597304,0.084547,59124.0,59117.0,0.084556]
[1724892597508,0.09289216,59124.0,59123.0,0.084548]
[1724892598312,0.45369216,59124.0,59123.0,0.084548]
[1724892598615,0.48419785,59124.0,59123.0,0.084548]
[1724892598912,0.39965085,59124.0,59123.0,0.084548]
[1724892600012,0.40465085,59124.0,59123.0,0.084548]
[1724892600421,0.40865085,59124.0,59123.0,0.084548]
[1724892601208,0.40565085,59124.0,59123.0,0.084548]
[1724892602005,0.04485085,59124.0,59123.0,0.084548]
[1724892602206,0.04285085,59124.0,59123.0,0.084548]
[1724892602410,0.03450569,59124.0,59123.0,0.084548]
[1724892602612,0.03450569,59124.0,59123.0,0.445348]
[1724892602922,0.03650569,59124.0,59123.0,0.445348]
[1724892603724,0.03950569,59124.0,59123.0,0.445348]
[1724892605021,0.03450569,59124.0,59123.0,0.445348]
[1724892605218,0.03050569,59124.0,59123.0,0.445348]
[1724892605418,0.00025358,59129.0,59128.0,0.084541]
[1724892605931,0.12432613,59129.0,59128.0,0.084541]
[1724892606219,0.12432613,59129.0,59124.0,0.084546]
[1724892606220,0.084545,59125.0,59124.0,0.084546]
[1724892606518,0.084549,59123.0,59118.0,0.00025358]
[1724892606709,0.084552,59121.0,59118.0,0.08480858]
[1724892606915,0.084552,59121.0,59118.0,0.00025358]
[1724892608520,0.084552,59121.0,59118.0,0.00525358]
[1724892609018,0.001,59121.0,59118.0,0.01125358]
[1724892609209,0.03166401,59121.0,59118.0,0.01125358]
[1724892609416,0.001,59121.0,59118.0,0.01125358]
[1724892610017,0.001,59121.0,59120.0,0.084552]
[1724892611116,0.001,59121.0,59120.0,0.087552]
[1724892611830,0.03052389,59124.0,59123.0,0.084548]
[1724892612021,0.44659358,59129.0,59126.0,0.084543]
[1724892612219,0.45397344,59129.0,59126.0,0.084543]
[1724892612419,0.084542,59128.0,59126.0,0.084543]
[1724892614031,0.084542,59128.0,59127.0,0.084542]
[1724892614628,0.088542,59128.0,59127.0,0.084542]
[1724892614825,0.004,59128.0,59127.0,0.084542]
[1724892615125,0.007,59128.0,59127.0,0.084542]
[1724892615321,0.008,59128.0,59127.0,0.084542]
[1724892615527,0.005,59128.0,59127.0,0.084542]
[1724892615717,0.009,59128.0,59127.0,0.084542]
[1724892616119,0.07840244,59128.0,59127.0,0.084542]
[1724892616426,0.009,59128.0,59127.0,0.084542]
[1724892623723,0.3608,59132.0,59122.0,0.3608]
[1724892623724,0.2622441,59132.0,59122.0,0.3608]
[1724892624124,0.084538,59130.0,59129.0,0.084539]
[1724892625424,0.090538,59130.0,59129.0,0.085539]
[1724892627425,0.095538,59130.0,59129.0,0.085539]
[1724892628132,0.215538,59130.0,59129.0,0.085539]
[1724892631134,0.36308925,59130.0,59129.0,0.085539]
[1724892632930,0.07853725,59130.0,59129.0,1.842777]
[1724892633132,2.5e-07,59130.0,59129.0,1.842777]
[1724892633430,8.3e-07,59135.0,59134.0,0.253596]
[1724892633632,8.3e-07,59135.0,59134.0,1.241716]
[1724892633845,8.3e-07,59135.0,59134.0,1.841716]
[1724892635221,0.07537715,59135.0,59134.0,1.841716]
[1724892635629,0.06937715,59135.0,59134.0,1.841716]
[1724892635830,0.07037715,59135.0,59134.0,1.851716]
[1724892636026,0.07037715,59135.0,59134.0,1.745716]
[1724892636831,0.06937715,59135.0,59134.0,1.747716]
[1724892638435,0.07037715,59135.0,59134.0,1.748716]
[1724892639138,0.00100083,59135.0,59134.0,1.748716]
[1724892640047,8.3e-07,59135.0,59134.0,1.748716]
[1724892642342,8.3e-07,59135.0,59134.0,0.641396]
[1724892644645,8.3e-07,59135.0,59134.0,1.748716]
[1724892646949,8.3e-07,59135.0,59134.0,2.109516]
[1724892648441,0.08453183,59135.0,59134.0,0.833132]
[1724892648648,8.3e-07,59135.0,59134.0,0.833132]
[1724892649541,0.10011423,59135.0,59134.0,0.472332]
[1724892650148,0.03073791,59135.0,59134.0,0.472332]
[1724892658553,0.03073791,59135.0,59134.0,0.556864]
[1724892659459,0.11526891,59135.0,59134.0,0.472332]
[1724892659760,0.03073791,59135.0,59134.0,0.472332]
[1724892664961,0.03073791,59135.0,59134.0,0.556864]
[1724892665154,0.03073791,59135.0,59134.0,0.472332]
[1724892667959,0.03073791,59135.0,59134.0,0.556864]
[1724892668161,0.03073791,59135.0,59134.0,0.472332]
[1724892668364,0.03073791,59135.0,59134.0,0.556864]
[1724892669359,0.03073791,59135.0,59134.0,0.641396]
[1724892669665,8.3e-07,59135.0,59134.0,0.931396]
[1724892669866,8.3e-07,59135.0,59134.0,1.438716]
[1724892670458,8.3e-07,59135.0,59134.0,2.038716]
[1724892672054,8.3e-07,59135.0,59134.0,1.354184]
[1724892672253,8.3e-07,59135.0,59134.0,0.931396]
[1724892672451,8.3e-07,59135.0,59134.0,0.556864]
[1724892672651,8.3e-07,59135.0,59134.0,0.472332]
[1724892673865,0.06938402,59135.0,59134.0,0.472332]
[1724892675064,0.66123502,59135.0,59134.0,0.027]
[1724892675259,1.18939252,59135.0,59122.0,0.3608]
[1724892675460,0.084546,59125.0,59122.0,0.3608]
[1724892675762,0.1712,59124.0,59122.0,0.3608]
[1724892675960,0.24058319,59124.0,59122.0,0.3608]
[1724892676162,0.06938319,59123.0,59122.0,0.3608]
[1724892676361,0.1712,59124.0,59122.0,0.3608]
[1724892676557,0.1712,59124.0,59122.0,0.3888]
[1724892677658,0.1712,59124.0,59122.0,0.3748]
[1724892677860,0.1722,59124.0,59123.0,0.084548]
[1724892678765,0.20254833,59124.0,59123.0,0.084548]
[1724892679667,0.20354833,59124.0,59123.0,0.084548]
[1724892680862,0.03234833,59124.0,59123.0,0.084548]
[1724892691970,0.03234833,59124.0,59123.0,0.169096]
[1724892692569,0.0849,59139.0,59127.0,0.084542]
[1724892692775,0.246819,59144.0,59137.0,0.084528]
[1724892693069,0.246819,59144.0,59133.0,0.084534]
[1724892693070,0.25951038,59144.0,59132.0,0.36105358]
[1724892693268,0.246819,59144.0,59134.0,0.084532]
[1724892693668,0.246819,59144.0,59139.0,0.084525]
[1724892693669,0.03140141,59140.0,59139.0,0.084525]
[1724892693871,0.00025358,59140.0,59139.0,0.084525]
[1724892695680,0.00025358,59140.0,59139.0,0.45905]
[1724892696065,0.03067571,59144.0,59143.0,0.084519]
[1724892696369,0.3608,59152.0,59151.0,0.084508]
[1724892696774,0.36922965,59152.0,59151.0,0.084508]
[1724892697471,0.37622965,59152.0,59151.0,0.085508]
[1724892697978,0.40625962,59152.0,59151.0,0.085508]
[1724892698177,0.91341962,59152.0,59151.0,0.001]
[1724892698376,0.91341962,59152.0,59146.0,0.00025358]
[1724892698377,1.59792562,59152.0,59146.0,0.00025358]
[1724892698573,0.084512,59149.0,59146.0,0.00025358]
[1724892699072,0.084512,59148.0,59146.0,0.08476758]
[1724892700677,0.085512,59148.0,59146.0,0.08476758]
[1724892701677,0.085512,59148.0,59147.0,0.084514]
[1724892701877,0.086512,59148.0,59147.0,0.084514]
[1724892702975,0.088512,59148.0,59147.0,0.084514]
[1724892704178,0.004,59148.0,59147.0,0.445314]
[1724892706583,0.07337767,59148.0,59147.0,0.445314]
[1724892709483,0.07337767,59148.0,59147.0,0.529828]
[1724892709980,0.04963125,59148.0,59147.0,0.529828]
[1724892713685,0.03002997,59152.0,59151.0,0.169016]
[1724892713887,0.00016899,59157.0,59156.0,0.084501]
[1724892714077,0.00016899,59157.0,59156.0,0.445301]
[1724892714678,0.03001131,59157.0,59156.0,0.445301]
[1724892714881,0.00016899,59157.0,59156.0,0.529802]
[1724892715383,9.9e-07,59157.0,59156.0,0.614303]
[1724892715576,9.9e-07,59157.0,59156.0,0.529802]
[1724892715773,0.01200099,59157.0,59156.0,0.618602]
[1724892716277,0.01200099,59157.0,59156.0,0.530802]
[1724892716480,0.02400099,59157.0,59156.0,0.531802]
[1724892717171,0.01200099,59157.0,59156.0,0.531802]
[1724892717787,9.9e-07,59157.0,59156.0,0.531802]
[1724892720484,9.9e-07,59157.0,59156.0,0.447301]
[1724892721576,0.04963224,59157.0,59156.0,0.447301]
[1724892722986,0.12772619,59157.0,59156.0,0.447301]
[1724892725488,0.12772619,59157.0,59156.0,0.40257091]
[1724892725887,0.0084925,59161.0,59160.0,0.084495]
[1724892726091,0.15595176,59161.0,59160.0,0.084495]
[1724892726594,0.08659259,59161.0,59160.0,0.084495]
[1724892728091,0.08959259,59161.0,59160.0,0.084495]
[1724892728504,0.17708659,59161.0,59160.0,0.084495]
[1724892728793,0.0989865,59161.0,59160.0,0.084495]
[1724892730785,0.0989865,59161.0,59156.0,0.3608]
[1724892730786,0.5215725,59161.0,59156.0,0.3608]
[1724892730988,0.374499,59157.0,59151.0,0.084507]
[1724892731193,0.1697,59156.0,59149.0,0.3608]
[1724892731393,0.3608,59150.0,59146.0,0.00025358]
[1724892731586,0.084514,59147.0,59146.0,0.00025358]
[1724892731787,0.084514,59147.0,59146.0,0.08476858]
[1724892731987,0.29,59157.0,59148.0,0.084512]
[1724892732186,0.0825,59158.0,59148.0,0.084512]
[1724892732393,0.1352,59155.0,59148.0,0.084512]
[1724892732794,0.001,59150.0,59148.0,0.084512]
[1724892732989,0.08551,59150.0,59148.0,0.084512]
[1724892733391,0.08451,59150.0,59148.0,0.093512]
[1724892734896,0.08451,59150.0,59148.0,0.084512]
[1724892735091,0.03118027,59150.0,59149.0,0.084511]
[1724892735289,0.03218027,59150.0,59149.0,0.084511]
[1724892736303,0.002,59150.0,59149.0,0.178022]
[1724892736492,0.002,59150.0,59149.0,0.346822]
[1724892736699,0.002,59150.0,59149.0,1.454022]
[1724892737095,0.001,59150.0,59149.0,1.454022]
[1724892737304,0.002,59150.0,59149.0,1.463022]
[1724892739200,0.002,59150.0,59149.0,2.184622]
[1724892739603,0.002,59150.0,59149.0,0.824111]
[1724892747216,0.0879,59150.0,59149.0,0.824111]
[1724892747912,0.172409,59150.0,59149.0,0.824111]
[1724892748420,0.172409,59150.0,59149.0,0.463311]
[1724892753917,0.172409,59150.0,59149.0,0.102511]
[1724892754529,0.002,59150.0,59149.0,0.102511]
[1724892754730,0.002,59150.0,59149.0,0.463311]
[1724892762428,0.002,59150.0,59149.0,0.3788]
[1724892762635,0.593709,59150.0,59149.0,0.018]
[1724892764226,0.086509,59150.0,59149.0,0.018]
[1724892765023,0.002,59150.0,59149.0,0.102511]
[1724892766221,0.002,59150.0,59149.0,0.186211]
[1724892766926,0.002,59150.0,59149.0,0.270722]
[1724892771821,0.002,59150.0,59149.0,0.186211]
[1724892772020,0.002,59150.0,59149.0,0.102511]
[1724892776733,0.002,59150.0,59149.0,0.187022]
[1724892776929,0.002,59150.0,59149.0,0.102511]
[1724892779035,0.002,59150.0,59149.0,0.271533]
[1724892779234,0.002,59150.0,59149.0,0.694222]
[1724892779625,0.002,59150.0,59149.0,0.187022]
[1724892785936,0.00840522,59162.0,59161.0,0.084494]
[1724892786137,0.26617006,59168.0,59164.0,0.084489]
[1724892786138,0.1123811,59165.0,59164.0,0.084489]
[1724892786943,0.0302811,59165.0,59164.0,0.084489]
[1724892787147,0.169,59168.0,59167.0,0.084485]
[1724892787341,0.0857,59168.0,59167.0,0.084485]
[1724892787542,0.11643293,59168.0,59167.0,0.084485]
[1724892788439,0.12543293,59168.0,59167.0,0.085485]
[1724892789343,0.12943293,59168.0,59167.0,0.086485]
[1724892789546,0.12943293,59168.0,59167.0,0.447285]
[1724892794343,0.04373293,59168.0,59167.0,0.447285]
[1724892794545,0.04373293,59168.0,59167.0,0.53177]
[1724892795750,0.03973293,59168.0,59167.0,0.53077]
[1724892795944,0.03973293,59168.0,59167.0,0.53677]
[1724892796140,0.03173293,59168.0,59167.0,0.54377]
[1724892796638,0.03173293,59168.0,59167.0,0.54777]
[1724892798354,0.03173293,59168.0,59167.0,0.54477]
[1724892798852,0.03073293,59168.0,59167.0,0.53877]
[1724892799053,0.001,59168.0,59167.0,0.53677]
[1724892799255,0.001,59168.0,59167.0,0.54377]
[1724892799553,0.10799145,59173.0,59172.0,0.084478]
[1724892799739,0.07808182,59173.0,59172.0,0.445278]
[1724892800342,0.10786362,59173.0,59172.0,0.445278]
[1724892800747,0.10786362,59173.0,59172.0,0.448278]
[1724892802650,0.10786362,59173.0,59172.0,0.451278]
[1724892804051,0.0297818,59173.0,59172.0,0.451278]
[1724892804355,0.0842,59175.0,59174.0,0.084475]
[1724892805453,0.11486936,59175.0,59174.0,0.084475]
[1724892805654,0.11486936,59175.0,59174.0,0.085475]
[1724892805856,0.03066936,59175.0,59174.0,0.16995]
[1724892806057,0.0823,59186.0,59185.0,0.084459]
[1724892806355,0.11292067,59186.0,59185.0,0.084459]
[1724892807046,0.084458,59186.0,59185.0,0.084459]
[1724892807364,0.095458,59186.0,59185.0,0.086459]
[1724892808847,0.091458,59186.0,59185.0,0.085459]
[1724892809054,0.087458,59186.0,59185.0,0.084459]
[1724892809350,0.090458,59186.0,59185.0,0.084459]
[1724892810453,0.091458,59186.0,59185.0,0.084459]
[1724892810951,0.092458,59186.0,59185.0,0.084459]
[1724892812648,0.093458,59186.0,59185.0,0.084459]
[1724892814158,0.084463,59183.0,59181.0,0.084464]
[1724892814354,0.084463,59183.0,59182.0,0.084464]
[1724892815958,0.085463,59183.0,59182.0,0.084464]
[1724892816258,0.086463,59183.0,59182.0,0.084464]
[1724892816449,0.087463,59183.0,59182.0,0.084464]
[1724892817252,0.086463,59183.0,59182.0,0.084464]
[1724892817452,0.088463,59183.0,59182.0,0.084464]
[1724892818058,0.23909672,59183.0,59182.0,0.084464]
[1724892822768,0.084465,59181.0,59180.0,0.00025358]
[1724892823164,0.084465,59181.0,59180.0,0.08471958]
[1724892824166,0.084465,59181.0,59180.0,0.08571958]
[1724892824362,0.084465,59181.0,59180.0,0.00125358]
[1724892824769,0.16893,59181.0,59180.0,0.00125358]
[1724892826965,0.084465,59181.0,59180.0,0.00125358]
[1724892828465,0.084465,59181.0,59180.0,0.08405358]
[1724892828670,0.084465,59181.0,59180.0,0.17145358]
[1724892828869,0.084465,59181.0,59180.0,0.25591958]
[1724892830162,0.03063372,59183.0,59182.0,0.084464]
[1724892830370,0.084461,59184.0,59182.0,0.084464]
[1724892830565,0.084461,59184.0,59183.0,0.084462]
[1724892830966,0.11495906,59184.0,59183.0,0.084462]
[1724892832076,0.11795906,59184.0,59183.0,0.084462]
[1724892832772,0.084465,59181.0,59180.0,0.00025358]
[1724892834784,0.1625415,59181.0,59180.0,0.00025358]
[1724892835483,0.2470065,59181.0,59180.0,0.00025358]
[1724892835773,0.2470065,59181.0,59168.0,0.0864]
[1724892835774,0.084467,59180.0,59170.0,0.08448]
[1724892835976,0.084482,59170.0,59162.0,0.1726]
[1724892836176,0.084482,59170.0,59168.0,0.084482]
[1724892836568,0.084482,59170.0,59169.0,0.084482]
[1724892837376,0.085482,59170.0,59169.0,0.084482]
[1724892838886,0.085482,59170.0,59169.0,0.097482]
[1724892839087,0.085482,59170.0,59169.0,0.110482]
[1724892839885,0.001,59170.0,59169.0,0.110482]
[1724892840581,0.03121184,59170.0,59169.0,0.110482]
[1724892843482,0.11569284,59170.0,59169.0,0.110482]
[1724892843686,0.11569284,59170.0,59169.0,0.026]
[1724892844190,0.40569284,59170.0,59169.0,0.026]
[1724892844379,1.70127327,59170.0,59169.0,0.026]
[1724892845287,0.64471227,59170.0,59144.0,0.68144]
[1724892845581,0.084497,59159.0,59158.0,0.084497]
[1724892846097,0.3608,59161.0,59155.0,0.1757]
[1724892846279,0.00845718,59162.0,59161.0,0.084494]
[1724892846483,0.0312991,59164.0,59161.0,0.084494]
[1724892846781,0.00025358,59164.0,59162.0,0.084492]
[1724892846979,0.08474358,59164.0,59162.0,0.084492]
[1724892847684,0.084495,59160.0,59159.0,0.3608]
[1724892847986,0.00832358,59160.0,59158.0,0.014]
[1724892848187,0.3608,59161.0,59158.0,0.014]
[1724892848579,0.00836312,59160.0,59158.0,0.014]
[1724892848774,0.00836312,59160.0,59155.0,0.260202]
[1724892848985,0.3618,59161.0,59155.0,0.260202]
[1724892849584,0.37138044,59161.0,59155.0,0.260202]
[1724892850081,0.36938044,59161.0,59155.0,0.260202]
[1724892850289,0.001,59160.0,59155.0,0.260202]
[1724892851176,0.0845,59157.0,59155.0,0.260202]
[1724892851878,0.0845,59157.0,59155.0,0.271202]
[1724892852386,0.0845,59157.0,59155.0,0.280202]